[Event "Titled Tuesday Blitz March 01 Late 2022"]
[White "Batsiashvili, Nino"]
[Black "Lopez Perdomo, Juan David"]
[WhiteFideId "13602993"]
[BlackFideId "4405137"]
[WhiteElo "2230"]
[BlackElo "1997"]
[Result "1/2-1/2"]
[Round "04"]
[TimeControl "180+1"]
[Date "2022.03.02"]
[WhiteClock "0:00:15"]
[BlackClock "0:00:03"]

1. d4 {[%clk 0:02:58]}  c5 {[%clk 0:02:59]} 2. d5 {[%clk 0:02:58]}  e6 {[%clk 0:03:00]} 3. e4 {[%clk 0:02:57]}  exd5 {[%clk 0:03:00]} 4. exd5 {[%clk 0:02:58]}  d6 {[%clk 0:03:01]} 5. Nf3 {[%clk 0:02:57]}  Nf6 {[%clk 0:03:02]} 6. Be2 {[%clk 0:02:58]}  Be7 {[%clk 0:03:03]} 7. O-O {[%clk 0:02:58]}  O-O {[%clk 0:03:04]} 8. Nc3 {[%clk 0:02:57]}  Bg4 {[%clk 0:03:04]} 9. Nd2 {[%clk 0:02:57]}  Bxe2 {[%clk 0:03:03]} 10. Qxe2 {[%clk 0:02:58]}  Nbd7 {[%clk 0:03:04]} 11. Nc4 {[%clk 0:02:54]}  Nb6 {[%clk 0:03:02]} 12. Ne3 {[%clk 0:02:54]}  Re8 {[%clk 0:03:01]} 13. Rd1 {[%clk 0:02:52]}  Bf8 {[%clk 0:03:00]} 14. Qf3 {[%clk 0:02:51]}  Nbd7 {[%clk 0:02:58]} 15. h3 {[%clk 0:02:37]}  Ne5 {[%clk 0:02:58]} 16. Qe2 {[%clk 0:02:33]}  Ng6 {[%clk 0:02:55]} 17. a4 {[%clk 0:02:28]}  Qd7 {[%clk 0:02:36]} 18. Qf3 {[%clk 0:02:27]}  Ne5 {[%clk 0:02:35]} 19. Qf4 {[%clk 0:02:23]}  Nh5 {[%clk 0:02:31]} 20. Qg5 {[%clk 0:02:19]}  g6 {[%clk 0:02:27]} 21. f4 {[%clk 0:02:12]}  h6 {[%clk 0:02:20]} 22. Qh4 {[%clk 0:02:10]}  Be7 {[%clk 0:02:21]} 23. Qf2 {[%clk 0:02:09]}  Nxf4 {[%clk 0:01:30]} 24. Qxf4 {[%clk 0:02:10]}  Bg5 {[%clk 0:01:30]} 25. Qf2 {[%clk 0:02:09]}  f5 {[%clk 0:01:26]} 26. Nf1 {[%clk 0:02:07]}  f4 {[%clk 0:01:25]} 27. Ne4 {[%clk 0:01:59]}  Rf8 {[%clk 0:01:24]} 28. Nxg5 {[%clk 0:01:56]}  hxg5 {[%clk 0:01:25]} 29. Nh2 {[%clk 0:01:53]}  g4 {[%clk 0:01:23]} 30. hxg4 {[%clk 0:01:37]}  Nxg4 {[%clk 0:01:23]} 31. Nxg4 {[%clk 0:01:36]}  Qxg4 {[%clk 0:01:24]} 32. Qf3 {[%clk 0:01:36]}  Qf5 {[%clk 0:01:19]} 33. Rf1 {[%clk 0:01:24]}  g5 {[%clk 0:01:19]} 34. Bd2 {[%clk 0:01:17]}  Rae8 {[%clk 0:01:11]} 35. Bc3 {[%clk 0:01:10]}  g4 {[%clk 0:00:37]} 36. Qxf4 {[%clk 0:01:08]}  Qxf4 {[%clk 0:00:37]} 37. Rxf4 {[%clk 0:01:09]}  Rxf4 {[%clk 0:00:37]} 38. Kh2 {[%clk 0:01:02]}  Re2 {[%clk 0:00:30]} 39. Kg3 {[%clk 0:00:59]}  Rfe4 {[%clk 0:00:20]} 40. Rh1 {[%clk 0:00:57]}  R2e3+ {[%clk 0:00:19]} 41. Kh4 {[%clk 0:00:42]}  g3+ {[%clk 0:00:16]} 42. Kg5 {[%clk 0:00:41]}  Re7 {[%clk 0:00:06]} 43. Kg6 {[%clk 0:00:33]}  Rxc3 {[%clk 0:00:03]} 44. bxc3 {[%clk 0:00:34]}  Re5 {[%clk 0:00:02]} 45. Rh3 {[%clk 0:00:27]}  Rxd5 {[%clk 0:00:02]} 46. Rxg3 {[%clk 0:00:27]}  Rd2 {[%clk 0:00:02]} 47. Rg5 {[%clk 0:00:17]}  Rxc2 {[%clk 0:00:02]} 48. g4 {[%clk 0:00:17]}  Rxc3 {[%clk 0:00:02]} 49. Rd5 {[%clk 0:00:18]}  Rg3 {[%clk 0:00:01]} 50. g5 {[%clk 0:00:18]}  Rg4 {[%clk 0:00:01]} 51. Rxd6 {[%clk 0:00:18]}  Kf8 {[%clk 0:00:01]} 52. Rd7 {[%clk 0:00:14]}  Rxa4 {[%clk 0:00:01]} 53. Rxb7 {[%clk 0:00:14]}  Ra6+ {[%clk 0:00:02]} 54. Kf5 {[%clk 0:00:13]}  Rc6 {[%clk 0:00:02]} 55. Rxa7 {[%clk 0:00:13]}  c4 {[%clk 0:00:02]} 56. Ra2 {[%clk 0:00:13]}  c3 {[%clk 0:00:02]} 57. Rc2 {[%clk 0:00:14]}  Kg7 {[%clk 0:00:03]} 58. Ke4 {[%clk 0:00:14]}  Kg6 {[%clk 0:00:03]} 59. Kd4 {[%clk 0:00:14]}  Rc8 {[%clk 0:00:02]} 60. Rxc3 {[%clk 0:00:14]}  Rxc3 {[%clk 0:00:02]} 61. Kxc3 {[%clk 0:00:15]}  Kxg5 {[%clk 0:00:03]} 1/2-1/2


[Site "https://www.chess.com"]

[Event "Titled Tuesday Blitz March 01 Late 2022"]
[White "Boyer, Mahel"]
[Black "Mogranzini, Roberto"]
[WhiteFideId "45102422"]
[BlackFideId "810894"]
[WhiteElo "2718"]
[BlackElo "2494"]
[Result "1-0"]
[Round "04"]
[TimeControl "180+1"]
[Date "2022.03.02"]
[WhiteClock "0:00:18"]
[BlackClock "0:00:19"]

1. d4 {[%clk 0:03:00]}  Nf6 {[%clk 0:02:59]} 2. c4 {[%clk 0:02:54]}  d6 {[%clk 0:02:59]} 3. Nc3 {[%clk 0:02:49]}  e5 {[%clk 0:02:59]} 4. Nf3 {[%clk 0:02:48]}  e4 {[%clk 0:02:58]} 5. Nd2 {[%clk 0:02:44]}  Qe7 {[%clk 0:02:58]} 6. Qc2 {[%clk 0:02:45]}  Nc6 {[%clk 0:02:57]} 7. d5 {[%clk 0:02:11]}  Nd4 {[%clk 0:02:55]} 8. Qb1 {[%clk 0:02:04]}  e3 {[%clk 0:01:45]} 9. fxe3 {[%clk 0:02:00]}  Nf5 {[%clk 0:01:44]} 10. e4 {[%clk 0:01:58]}  Ne3 {[%clk 0:01:44]} 11. Qd3 {[%clk 0:01:57]}  Nfg4 {[%clk 0:01:40]} 12. Nf3 {[%clk 0:01:53]}  Nxf1 {[%clk 0:01:38]} 13. Rxf1 {[%clk 0:01:53]}  g6 {[%clk 0:01:31]} 14. Qd4 {[%clk 0:01:16]}  f6 {[%clk 0:01:30]} 15. h3 {[%clk 0:01:16]}  Ne5 {[%clk 0:01:30]} 16. Nxe5 {[%clk 0:01:16]}  fxe5 {[%clk 0:01:28]} 17. Qf2 {[%clk 0:01:13]}  h6 {[%clk 0:01:18]} 18. Be3 {[%clk 0:01:11]}  a6 {[%clk 0:01:15]} 19. O-O-O {[%clk 0:01:00]}  Bg7 {[%clk 0:01:13]} 20. c5 {[%clk 0:00:59]}  Bd7 {[%clk 0:01:10]} 21. Qg3 {[%clk 0:00:54]}  g5 {[%clk 0:01:10]} 22. h4 {[%clk 0:00:53]}  g4 {[%clk 0:01:04]} 23. Kb1 {[%clk 0:00:50]}  Bf6 {[%clk 0:00:50]} 24. h5 {[%clk 0:00:47]}  Bg5 {[%clk 0:00:50]} 25. Bxg5 {[%clk 0:00:28]}  Qxg5 {[%clk 0:00:51]} 26. Rf2 {[%clk 0:00:27]}  dxc5 {[%clk 0:00:35]} 27. Rdf1 {[%clk 0:00:21]}  O-O-O {[%clk 0:00:34]} 28. Rf7 {[%clk 0:00:21]}  Qxh5 {[%clk 0:00:29]} 29. Re7 {[%clk 0:00:20]}  Rde8 {[%clk 0:00:26]} 30. Rff7 {[%clk 0:00:19]}  Rxe7 {[%clk 0:00:21]} 31. Rxe7 {[%clk 0:00:20]}  Re8 {[%clk 0:00:21]} 32. Rxe8+ {[%clk 0:00:19]}  Qxe8 {[%clk 0:00:22]} 33. Qh4 {[%clk 0:00:19]}  h5 {[%clk 0:00:20]} 34. Qg5 {[%clk 0:00:19]}  Qf8 {[%clk 0:00:19]} 35. Qxe5 {[%clk 0:00:17]}  Qf1+ {[%clk 0:00:19]} 36. Kc2 {[%clk 0:00:18]}  Qxg2 {[%clk 0:00:19]} 37. Qh8+ {[%clk 0:00:18]} 1-0


[Site "https://www.chess.com"]

[Event "Titled Tuesday Blitz March 01 Late 2022"]
[White "Brahami, Lamine"]
[Black "P., Komal Kishore"]
[WhiteFideId "7905637"]
[BlackFideId "5016703"]
[WhiteElo "1909"]
[BlackElo "2078"]
[Result "0-1"]
[Round "04"]
[TimeControl "180+1"]
[Date "2022.03.02"]
[WhiteClock "0:02:26"]
[BlackClock "0:02:30"]

1. d4 {[%clk 0:03:00]}  c6 {[%clk 0:03:00]} 2. e4 {[%clk 0:03:00]}  d5 {[%clk 0:03:01]} 3. e5 {[%clk 0:03:00]}  Bf5 {[%clk 0:03:01]} 4. g4 {[%clk 0:03:01]}  Be4 {[%clk 0:03:01]} 5. f3 {[%clk 0:03:00]}  Bg6 {[%clk 0:03:00]} 6. h4 {[%clk 0:03:01]}  h5 {[%clk 0:03:00]} 7. g5 {[%clk 0:03:01]}  e6 {[%clk 0:02:59]} 8. Bd3 {[%clk 0:03:01]}  Bxd3 {[%clk 0:02:57]} 9. Qxd3 {[%clk 0:03:02]}  g6 {[%clk 0:02:57]} 10. Ne2 {[%clk 0:02:57]}  Ne7 {[%clk 0:02:56]} 11. Ng3 {[%clk 0:02:56]}  Nf5 {[%clk 0:02:56]} 12. Nxf5 {[%clk 0:02:56]}  gxf5 {[%clk 0:02:54]} 13. Nd2 {[%clk 0:02:52]}  c5 {[%clk 0:02:51]} 14. c3 {[%clk 0:02:52]}  Be7 {[%clk 0:02:47]} 15. Nf1 {[%clk 0:02:51]}  Nd7 {[%clk 0:02:46]} 16. Ng3 {[%clk 0:02:50]}  Nf8 {[%clk 0:02:41]} 17. f4 {[%clk 0:02:43]}  Ng6 {[%clk 0:02:39]} 18. Qf3 {[%clk 0:02:41]}  cxd4 {[%clk 0:02:35]} 19. cxd4 {[%clk 0:02:40]}  Qb6 {[%clk 0:02:36]} 20. Be3 {[%clk 0:02:39]}  Qxb2 {[%clk 0:02:34]} 21. O-O {[%clk 0:02:30]}  Nxh4 {[%clk 0:02:32]} 22. Qd1 {[%clk 0:02:26]}  Qg2# {[%clk 0:02:30]} 0-1


[Site "https://www.chess.com"]

[Event "Titled Tuesday Blitz March 01 Late 2022"]
[White "Carre, Sylvain"]
[Black "Petrovic, Aleksa"]
[WhiteFideId "642118"]
[BlackFideId "967629"]
[WhiteElo "2105"]
[BlackElo "2139"]
[Result "0-1"]
[Round "04"]
[TimeControl "180+1"]
[Date "2022.03.02"]
[WhiteClock "0:00:05"]
[BlackClock "0:00:40"]

1. d4 {[%clk 0:03:00]}  e6 {[%clk 0:02:58]} 2. Bf4 {[%clk 0:03:00]}  Nf6 {[%clk 0:02:57]} 3. e3 {[%clk 0:03:01]}  b6 {[%clk 0:02:56]} 4. Nf3 {[%clk 0:02:59]}  Bb7 {[%clk 0:02:55]} 5. c4 {[%clk 0:02:55]}  Bb4+ {[%clk 0:02:53]} 6. Nbd2 {[%clk 0:02:52]}  a5 {[%clk 0:02:45]} 7. Bd3 {[%clk 0:02:42]}  d6 {[%clk 0:02:43]} 8. O-O {[%clk 0:02:35]}  Bxd2 {[%clk 0:02:42]} 9. Nxd2 {[%clk 0:02:35]}  Nbd7 {[%clk 0:02:42]} 10. Bg5 {[%clk 0:02:18]}  h6 {[%clk 0:02:39]} 11. Bh4 {[%clk 0:02:18]}  e5 {[%clk 0:02:33]} 12. Rc1 {[%clk 0:02:13]}  c5 {[%clk 0:02:27]} 13. Be4 {[%clk 0:01:41]}  Qc7 {[%clk 0:02:03]} 14. Bxb7 {[%clk 0:01:16]}  Qxb7 {[%clk 0:02:04]} 15. Bxf6 {[%clk 0:01:14]}  Nxf6 {[%clk 0:02:02]} 16. Qa4+ {[%clk 0:00:54]}  Qd7 {[%clk 0:01:58]} 17. Qxd7+ {[%clk 0:00:51]}  Kxd7 {[%clk 0:01:56]} 18. Rfd1 {[%clk 0:00:48]}  Kc6 {[%clk 0:01:52]} 19. dxe5 {[%clk 0:00:36]}  dxe5 {[%clk 0:01:51]} 20. Nf3 {[%clk 0:00:33]}  Rhe8 {[%clk 0:01:51]} 21. Rd2 {[%clk 0:00:25]}  e4 {[%clk 0:01:50]} 22. Nh4 {[%clk 0:00:23]}  Re5 {[%clk 0:01:42]} 23. Rcd1 {[%clk 0:00:20]}  Rae8 {[%clk 0:01:39]} 24. g3 {[%clk 0:00:20]}  g5 {[%clk 0:01:22]} 25. Ng2 {[%clk 0:00:21]}  R5e6 {[%clk 0:01:22]} 26. h4 {[%clk 0:00:20]}  Ng4 {[%clk 0:01:17]} 27. hxg5 {[%clk 0:00:19]}  hxg5 {[%clk 0:01:18]} 28. Rd5 {[%clk 0:00:19]}  Ne5 {[%clk 0:01:17]} 29. b3 {[%clk 0:00:17]}  Rh8 {[%clk 0:01:12]} 30. Ne1 {[%clk 0:00:18]}  Reh6 {[%clk 0:01:08]} 31. Kf1 {[%clk 0:00:17]}  Re6 {[%clk 0:01:01]} 32. Ke2 {[%clk 0:00:16]}  Rh2 {[%clk 0:00:59]} 33. a4 {[%clk 0:00:14]}  Rf6 {[%clk 0:00:57]} 34. Kd2 {[%clk 0:00:10]}  Rfxf2+ {[%clk 0:00:56]} 35. Kc3 {[%clk 0:00:08]}  Nd3 {[%clk 0:00:51]} 36. R1xd3 {[%clk 0:00:05]}  exd3 {[%clk 0:00:50]} 37. Rxd3 {[%clk 0:00:06]}  Rf1 {[%clk 0:00:43]} 38. Nc2 {[%clk 0:00:05]}  Rc1 {[%clk 0:00:43]} 39. Rd2 {[%clk 0:00:05]}  Rxd2 {[%clk 0:00:43]} 40. Kxd2 {[%clk 0:00:06]}  Rg1 {[%clk 0:00:43]} 41. Na3 {[%clk 0:00:05]}  Rxg3 {[%clk 0:00:43]} 42. Nb5 {[%clk 0:00:06]}  g4 {[%clk 0:00:43]} 43. Nc3 {[%clk 0:00:05]}  Rg2+ {[%clk 0:00:43]} 44. Kd3 {[%clk 0:00:06]}  g3 {[%clk 0:00:43]} 45. Ne4 {[%clk 0:00:06]}  Rg1 {[%clk 0:00:43]} 46. Ke2 {[%clk 0:00:06]}  g2 {[%clk 0:00:43]} 47. Kf2 {[%clk 0:00:07]}  Re1 {[%clk 0:00:41]} 48. Kxg2 {[%clk 0:00:04]}  Rxe3 {[%clk 0:00:41]} 49. Ng5 {[%clk 0:00:05]}  Rxb3 {[%clk 0:00:40]} 50. Nxf7 {[%clk 0:00:05]}  Rb4 {[%clk 0:00:39]} 51. Kf2 {[%clk 0:00:06]}  Rxa4 {[%clk 0:00:39]} 52. Ke3 {[%clk 0:00:05]}  Rxc4 {[%clk 0:00:39]} 53. Ne5+ {[%clk 0:00:05]}  Kd5 {[%clk 0:00:39]} 54. Nxc4 {[%clk 0:00:05]}  Kxc4 {[%clk 0:00:40]} 0-1


[Site "https://www.chess.com"]

[Event "Titled Tuesday Blitz March 01 Late 2022"]
[White "Celestino, Rafael Teixeira"]
[Black "Roque Sola, Jose Luis"]
[WhiteFideId "2108925"]
[BlackFideId "5120390"]
[WhiteElo "2311"]
[BlackElo "1983"]
[Result "1-0"]
[Round "04"]
[TimeControl "180+1"]
[Date "2022.03.02"]
[WhiteClock "0:00:02"]
[BlackClock "0:00:02"]

1. e4 {[%clk 0:03:00]}  e6 {[%clk 0:02:59]} 2. d4 {[%clk 0:03:00]}  d5 {[%clk 0:02:58]} 3. Bd3 {[%clk 0:03:01]}  dxe4 {[%clk 0:02:57]} 4. Bxe4 {[%clk 0:03:02]}  Nf6 {[%clk 0:02:57]} 5. Bf3 {[%clk 0:03:02]}  c5 {[%clk 0:02:54]} 6. Ne2 {[%clk 0:03:02]}  Nc6 {[%clk 0:02:52]} 7. Be3 {[%clk 0:03:02]}  cxd4 {[%clk 0:02:51]} 8. Nxd4 {[%clk 0:03:03]}  Ne5 {[%clk 0:02:51]} 9. Nc3 {[%clk 0:03:03]}  Be7 {[%clk 0:02:35]} 10. O-O {[%clk 0:03:03]}  O-O {[%clk 0:02:34]} 11. Qe2 {[%clk 0:03:03]}  Nxf3+ {[%clk 0:02:33]} 12. Qxf3 {[%clk 0:03:04]}  a6 {[%clk 0:02:31]} 13. Rad1 {[%clk 0:03:04]}  Qc7 {[%clk 0:02:25]} 14. Qg3 {[%clk 0:03:01]}  Qxg3 {[%clk 0:02:23]} 15. hxg3 {[%clk 0:03:02]}  Bd7 {[%clk 0:02:20]} 16. Nb3 {[%clk 0:02:57]}  Bc6 {[%clk 0:02:18]} 17. Na5 {[%clk 0:02:57]}  Rac8 {[%clk 0:01:55]} 18. Rd2 {[%clk 0:02:33]}  Bb4 {[%clk 0:01:50]} 19. Nxc6 {[%clk 0:02:33]}  Rxc6 {[%clk 0:01:49]} 20. Rd3 {[%clk 0:02:26]}  Bxc3 {[%clk 0:01:45]} 21. bxc3 {[%clk 0:02:27]}  Nd5 {[%clk 0:01:38]} 22. Rb1 {[%clk 0:02:16]}  b5 {[%clk 0:01:35]} 23. Bd4 {[%clk 0:02:07]}  f6 {[%clk 0:01:29]} 24. a4 {[%clk 0:01:33]}  bxa4 {[%clk 0:01:24]} 25. f4 {[%clk 0:01:33]}  Rfc8 {[%clk 0:01:21]} 26. Ra1 {[%clk 0:01:28]}  Nxc3 {[%clk 0:01:18]} 27. Kf1 {[%clk 0:01:25]}  Rc4 {[%clk 0:01:07]} 28. Be3 {[%clk 0:01:13]}  Nd5 {[%clk 0:01:05]} 29. Bd2 {[%clk 0:01:09]}  Rxc2 {[%clk 0:01:04]} 30. Rxa4 {[%clk 0:01:09]}  Rb8 {[%clk 0:00:54]} 31. Rxa6 {[%clk 0:01:02]}  Rb1+ {[%clk 0:00:40]} 32. Ke2 {[%clk 0:01:01]}  Rbb2 {[%clk 0:00:37]} 33. Rxe6 {[%clk 0:00:42]}  Kf7 {[%clk 0:00:36]} 34. f5 {[%clk 0:00:34]}  Nc3+ {[%clk 0:00:31]} 35. Ke1 {[%clk 0:00:27]}  Rb1+ {[%clk 0:00:30]} 36. Kf2 {[%clk 0:00:27]}  Rd1 {[%clk 0:00:16]} 37. Rd7+ {[%clk 0:00:23]}  Kf8 {[%clk 0:00:16]} 38. Ke3 {[%clk 0:00:20]}  h6 {[%clk 0:00:11]} 39. Rd8+ {[%clk 0:00:07]}  Kf7 {[%clk 0:00:11]} 40. Rd7+ {[%clk 0:00:08]}  Kg8 {[%clk 0:00:11]} 41. Re8+ {[%clk 0:00:06]}  Kh7 {[%clk 0:00:11]} 42. Ree7 {[%clk 0:00:06]}  Kh8 {[%clk 0:00:02]} 43. Kf2 {[%clk 0:00:02]} 1-0


[Site "https://www.chess.com"]

[Event "Titled Tuesday Blitz March 01 Late 2022"]
[White "Chernomordik, Pavel"]
[Black "Curtis, John"]
[WhiteFideId "2804530"]
[BlackFideId "3200256"]
[WhiteElo "2249"]
[BlackElo "2203"]
[Result "1-0"]
[Round "04"]
[TimeControl "180+1"]
[Date "2022.03.02"]
[WhiteClock "0:00:13"]
[BlackClock "0:00:03"]

1. e4 {[%clk 0:03:00]}  e5 {[%clk 0:02:58]} 2. Nf3 {[%clk 0:03:00]}  Nc6 {[%clk 0:02:58]} 3. Bc4 {[%clk 0:02:59]}  Bc5 {[%clk 0:02:57]} 4. c3 {[%clk 0:02:59]}  Bb6 {[%clk 0:02:56]} 5. d4 {[%clk 0:02:59]}  Qe7 {[%clk 0:02:56]} 6. O-O {[%clk 0:02:55]}  Nf6 {[%clk 0:02:56]} 7. Bg5 {[%clk 0:02:52]}  h6 {[%clk 0:02:56]} 8. Bxf6 {[%clk 0:02:46]}  Qxf6 {[%clk 0:02:55]} 9. d5 {[%clk 0:02:45]}  Nb8 {[%clk 0:02:54]} 10. Nbd2 {[%clk 0:02:41]}  d6 {[%clk 0:02:54]} 11. Bb5+ {[%clk 0:02:39]}  Kf8 {[%clk 0:02:52]} 12. Ne1 {[%clk 0:02:37]}  g5 {[%clk 0:02:50]} 13. Kh1 {[%clk 0:02:36]}  a6 {[%clk 0:02:49]} 14. Ba4 {[%clk 0:02:34]}  h5 {[%clk 0:02:47]} 15. Nc4 {[%clk 0:02:33]}  Ba7 {[%clk 0:02:46]} 16. Bc2 {[%clk 0:02:32]}  Nd7 {[%clk 0:02:31]} 17. Nd3 {[%clk 0:02:31]}  Kg7 {[%clk 0:02:23]} 18. f3 {[%clk 0:02:30]}  Nf8 {[%clk 0:02:21]} 19. b4 {[%clk 0:02:28]}  Ng6 {[%clk 0:02:19]} 20. Qd2 {[%clk 0:02:26]}  h4 {[%clk 0:02:19]} 21. Ne3 {[%clk 0:02:23]}  Nf4 {[%clk 0:02:14]} 22. Nf2 {[%clk 0:02:21]}  Bxe3 {[%clk 0:02:03]} 23. Qxe3 {[%clk 0:02:20]}  Bd7 {[%clk 0:02:02]} 24. Ng4 {[%clk 0:02:14]}  Bxg4 {[%clk 0:01:58]} 25. fxg4 {[%clk 0:02:14]}  Qe7 {[%clk 0:01:58]} 26. Kg1 {[%clk 0:02:12]}  Rh6 {[%clk 0:01:56]} 27. c4 {[%clk 0:02:09]}  Qd7 {[%clk 0:01:41]} 28. h3 {[%clk 0:02:08]}  Rf6 {[%clk 0:01:40]} 29. Rfc1 {[%clk 0:02:02]}  a5 {[%clk 0:01:40]} 30. a3 {[%clk 0:02:01]}  b6 {[%clk 0:01:39]} 31. Bd1 {[%clk 0:01:57]}  Kg6 {[%clk 0:01:34]} 32. c5 {[%clk 0:01:51]}  bxc5 {[%clk 0:01:24]} 33. bxc5 {[%clk 0:01:50]}  Qb5 {[%clk 0:01:19]} 34. cxd6 {[%clk 0:01:45]}  cxd6 {[%clk 0:01:19]} 35. Rab1 {[%clk 0:01:44]}  Qd3 {[%clk 0:01:19]} 36. Rb3 {[%clk 0:01:38]}  Qxe3+ {[%clk 0:01:15]} 37. Rxe3 {[%clk 0:01:37]}  Rb8 {[%clk 0:01:15]} 38. Bf3 {[%clk 0:01:21]}  Rb2 {[%clk 0:01:15]} 39. Rec3 {[%clk 0:01:21]}  a4 {[%clk 0:01:02]} 40. R1c2 {[%clk 0:01:17]}  Rb1+ {[%clk 0:00:54]} 41. Kf2 {[%clk 0:01:12]}  Rh1 {[%clk 0:00:48]} 42. Ke3 {[%clk 0:01:04]}  Rf1 {[%clk 0:00:41]} 43. Rf2 {[%clk 0:00:59]}  Re1+ {[%clk 0:00:39]} 44. Kd2 {[%clk 0:00:59]}  Rb1 {[%clk 0:00:37]} 45. Kc2 {[%clk 0:00:58]}  Rg1 {[%clk 0:00:34]} 46. Rd2 {[%clk 0:00:44]}  Rf1 {[%clk 0:00:32]} 47. Bd1 {[%clk 0:00:40]}  Rg1 {[%clk 0:00:30]} 48. Bf3 {[%clk 0:00:39]}  Kg7 {[%clk 0:00:29]} 49. Rd1 {[%clk 0:00:34]}  Rxd1 {[%clk 0:00:25]} 50. Kxd1 {[%clk 0:00:33]}  Kf8 {[%clk 0:00:24]} 51. Kd2 {[%clk 0:00:32]}  Ke7 {[%clk 0:00:24]} 52. Ke3 {[%clk 0:00:31]}  Rh6 {[%clk 0:00:20]} 53. Rc4 {[%clk 0:00:30]}  Rh8 {[%clk 0:00:20]} 54. Rxa4 {[%clk 0:00:30]}  Rc8 {[%clk 0:00:20]} 55. Ra7+ {[%clk 0:00:30]}  Kd8 {[%clk 0:00:19]} 56. Kd2 {[%clk 0:00:26]}  Rb8 {[%clk 0:00:17]} 57. Kc3 {[%clk 0:00:24]}  Rc8+ {[%clk 0:00:17]} 58. Kb3 {[%clk 0:00:23]}  Rb8+ {[%clk 0:00:17]} 59. Kc4 {[%clk 0:00:23]}  Rb2 {[%clk 0:00:17]} 60. Rxf7 {[%clk 0:00:22]}  Nxg2 {[%clk 0:00:17]} 61. a4 {[%clk 0:00:20]}  Nf4 {[%clk 0:00:13]} 62. a5 {[%clk 0:00:19]}  Ra2 {[%clk 0:00:13]} 63. Kb5 {[%clk 0:00:19]}  Nxh3 {[%clk 0:00:14]} 64. a6 {[%clk 0:00:17]}  Nf4 {[%clk 0:00:07]} 65. a7 {[%clk 0:00:17]}  Kc8 {[%clk 0:00:07]} 66. Kc6 {[%clk 0:00:16]}  Rc2+ {[%clk 0:00:05]} 67. Kxd6 {[%clk 0:00:15]}  Ra2 {[%clk 0:00:04]} 68. Kxe5 {[%clk 0:00:15]}  h3 {[%clk 0:00:04]} 69. d6 {[%clk 0:00:13]}  h2 {[%clk 0:00:03]} 70. Rh7 {[%clk 0:00:13]} 1-0


[Site "https://www.chess.com"]

[Event "Titled Tuesday Blitz March 01 Late 2022"]
[White "Daggupati, Balaji"]
[Black "Domingo Nunez, Alejandro"]
[WhiteFideId "2090759"]
[BlackFideId "22245561"]
[WhiteElo "2740"]
[BlackElo "2527"]
[Result "1/2-1/2"]
[Round "04"]
[TimeControl "180+1"]
[Date "2022.03.02"]
[WhiteClock "0:00:06"]
[BlackClock "0:00:15"]

1. e4 {[%clk 0:03:00]}  g6 {[%clk 0:02:57]} 2. d4 {[%clk 0:03:00]}  Bg7 {[%clk 0:02:58]} 3. Nc3 {[%clk 0:03:01]}  c6 {[%clk 0:02:59]} 4. Bc4 {[%clk 0:02:57]}  d5 {[%clk 0:02:59]} 5. exd5 {[%clk 0:02:56]}  b5 {[%clk 0:03:00]} 6. Bb3 {[%clk 0:02:56]}  b4 {[%clk 0:03:00]} 7. Na4 {[%clk 0:02:56]}  cxd5 {[%clk 0:03:01]} 8. a3 {[%clk 0:02:56]}  bxa3 {[%clk 0:03:01]} 9. Rxa3 {[%clk 0:02:57]}  Nf6 {[%clk 0:03:02]} 10. Ne2 {[%clk 0:02:56]}  O-O {[%clk 0:03:02]} 11. O-O {[%clk 0:02:57]}  Nc6 {[%clk 0:03:02]} 12. c3 {[%clk 0:02:49]}  Na5 {[%clk 0:02:42]} 13. Ba2 {[%clk 0:02:47]}  Ba6 {[%clk 0:02:34]} 14. Nc5 {[%clk 0:02:45]}  Bc4 {[%clk 0:02:33]} 15. b3 {[%clk 0:02:39]}  Bb5 {[%clk 0:02:32]} 16. Re1 {[%clk 0:02:30]}  e6 {[%clk 0:02:18]} 17. Nf4 {[%clk 0:02:26]}  Qb6 {[%clk 0:02:14]} 18. Nfd3 {[%clk 0:02:16]}  Nd7 {[%clk 0:01:51]} 19. b4 {[%clk 0:01:56]}  Nc4 {[%clk 0:01:44]} 20. Bxc4 {[%clk 0:01:56]}  dxc4 {[%clk 0:01:42]} 21. Nxd7 {[%clk 0:01:56]}  Bxd7 {[%clk 0:01:43]} 22. Nc5 {[%clk 0:01:56]}  Bc6 {[%clk 0:01:42]} 23. Bf4 {[%clk 0:01:55]}  a5 {[%clk 0:01:31]} 24. b5 {[%clk 0:01:06]}  Bxb5 {[%clk 0:01:24]} 25. Ra1 {[%clk 0:01:05]}  Bc6 {[%clk 0:01:05]} 26. Qe2 {[%clk 0:01:05]}  Bd5 {[%clk 0:01:04]} 27. Reb1 {[%clk 0:01:05]}  Qc6 {[%clk 0:01:04]} 28. f3 {[%clk 0:00:51]}  a4 {[%clk 0:01:04]} 29. Ra3 {[%clk 0:00:45]}  Ra5 {[%clk 0:01:00]} 30. Rb4 {[%clk 0:00:41]}  Re8 {[%clk 0:00:51]} 31. Raxa4 {[%clk 0:00:27]}  Rxc5 {[%clk 0:00:35]} 32. dxc5 {[%clk 0:00:24]}  Bxc3 {[%clk 0:00:36]} 33. Rxc4 {[%clk 0:00:23]}  Qb5 {[%clk 0:00:21]} 34. Qd3 {[%clk 0:00:10]}  Bf6 {[%clk 0:00:20]} 35. c6 {[%clk 0:00:09]}  Rc8 {[%clk 0:00:19]} 36. c7 {[%clk 0:00:08]}  e5 {[%clk 0:00:20]} 37. Be3 {[%clk 0:00:08]}  Rxc7 {[%clk 0:00:18]} 38. Rab4 {[%clk 0:00:01]}  Bxc4 {[%clk 0:00:17]} 39. Qd6 {[%clk 0:00:02]}  Qc6 {[%clk 0:00:16]} 40. Rb8+ {[%clk 0:00:03]}  Bd8 {[%clk 0:00:08]} 41. Rxd8+ {[%clk 0:00:02]}  Kg7 {[%clk 0:00:09]} 42. Qf8+ {[%clk 0:00:02]}  Kf6 {[%clk 0:00:09]} 43. Qh8+ {[%clk 0:00:03]}  Kf5 {[%clk 0:00:08]} 44. g4+ {[%clk 0:00:02]}  Ke6 {[%clk 0:00:08]} 45. Re8+ {[%clk 0:00:03]}  Re7 {[%clk 0:00:08]} 46. Rxe7+ {[%clk 0:00:03]}  Kxe7 {[%clk 0:00:09]} 47. Qxe5+ {[%clk 0:00:04]}  Be6 {[%clk 0:00:09]} 48. Bg5+ {[%clk 0:00:04]}  Kd7 {[%clk 0:00:10]} 49. Qd4+ {[%clk 0:00:04]}  Qd5 {[%clk 0:00:10]} 50. Qa7+ {[%clk 0:00:04]}  Kc6 {[%clk 0:00:11]} 51. Qa8+ {[%clk 0:00:04]}  Kc5 {[%clk 0:00:11]} 52. Qa5+ {[%clk 0:00:05]}  Kc6 {[%clk 0:00:11]} 53. Qc3+ {[%clk 0:00:05]}  Qc5+ {[%clk 0:00:11]} 54. Qxc5+ {[%clk 0:00:05]}  Kxc5 {[%clk 0:00:12]} 55. Be3+ {[%clk 0:00:05]}  Kd5 {[%clk 0:00:13]} 56. Kf2 {[%clk 0:00:05]}  Bd7 {[%clk 0:00:14]} 57. Kg3 {[%clk 0:00:06]}  Ke6 {[%clk 0:00:13]} 58. Kf4 {[%clk 0:00:05]}  f6 {[%clk 0:00:14]} 59. Bd4 {[%clk 0:00:05]}  Bc6 {[%clk 0:00:14]} 60. h4 {[%clk 0:00:05]}  h6 {[%clk 0:00:15]} 61. Ke3 {[%clk 0:00:03]}  g5 {[%clk 0:00:15]} 62. hxg5 {[%clk 0:00:04]}  hxg5 {[%clk 0:00:15]} 63. Bc3 {[%clk 0:00:05]}  Bd5 {[%clk 0:00:15]} 64. Bd4 {[%clk 0:00:05]}  Bc6 {[%clk 0:00:16]} 65. Bb2 {[%clk 0:00:05]}  Bb7 {[%clk 0:00:16]} 66. f4 {[%clk 0:00:06]}  Kf7 {[%clk 0:00:14]} 67. Bxf6 {[%clk 0:00:05]}  Kxf6 {[%clk 0:00:14]} 68. fxg5+ {[%clk 0:00:05]}  Kxg5 {[%clk 0:00:15]} 69. Kd4 {[%clk 0:00:06]}  Kxg4 {[%clk 0:00:15]} 1/2-1/2


[Site "https://www.chess.com"]